Cogmind - Beta 13 X2 @@@ ROGUE MODE // 2023.12.27 @ 15:13:28 Player: f3-rnm Result: Destroyed by Tesla Bomb Trap Performance ------------- Evolutions (6) 3000 Regions Visited (17) 3400 Robots Destroyed (108) 540 Value Destroyed (4412) 4412 Prototype IDs (22) 440 Alien Tech Used (0) 0 Bonus (1033) 1033 TOTAL SCORE: 12825 Bonus ------- High Alert Combat Kills 226 Follower Combat Kills 875 Met Data Miner 300 Friendly Fire -368 Cogmind --------- Core Integrity 0/1150 Matter 221/300 Energy 99/100 System Corruption 18% Temperature Cool (0) Movement Core (50) Location -4/Factory Parts ------- > --- POWER (2) -------- (None) > --- PROPULSION (6) --- (None) > --- UTILITY (9) ------ (None) > --- WEAPON (2) ------- (None) > --- INVENTORY (5) ---- Improved Treads Myomer Leg Large Storage Unit Transmission Jammer Improved Transmission Jammer Peak State ------------ > --- POWER ------------ Neutrino Core Quantum Reactor > --- PROPULSION ------- Carbon-fiber Leg Improved Titanium Leg Flexi-carbon Leg Myomer Leg Myomer Leg Myomer Leg > --- UTILITY ---------- Large Storage Unit Advanced Melee Analysis Suite Advanced Melee Analysis Suite Microactuators Improved Reaction Control System Improved Utility Shielding Centrium Medium Armor Plating Centrium Medium Armor Plating Advanced Shield Generator > --- WEAPON ----------- Advanced KE Penetrator Phasing Sabre > --- INVENTORY -------- Antimatter Reactor Structural Scanner Weapon Mount Transmission Jammer Improved Transmission Jammer Advanced Transmission Jammer Hardened Medium Armor Plating Hardened Medium Armor Plating Graphene Brace Heavy Rocket Launcher Improved Remote Datajack Mace Phasing Sabre [Rating: 115] Favorites ----------- Power Antimatter Reactor Engine Heavy Ion Engine Power Core Neutrino Core Reactor Antimatter Reactor Propulsion Myomer Leg Treads Heavy Treads Leg Myomer Leg Wheel Compact Wheel Flight Unit Improved VTOL Module Utility Large Storage Unit Device Structural Scanner Storage Large Storage Unit Processor Advanced Melee Analysis Suite Hackware Hacking Suite Protection Improved Utility Shielding Weapon Phasing Sabre Energy Gun EM Shotgun Ballistic Gun Assault Rifle Ballistic Cannon Light Cannon Launcher Heavy Rocket Launcher Special Weapon Improved Remote Datajack Impact Weapon Mace Slashing Weapon Phasing Sabre Build | -11 -10 -10 -8 -7 -6 -6 -6 -6 -6 -6 -5 -5 -5 -5 -5 -5 -4 ------- Run | Yrd Mat Sub Mat Fac Fac Was Fac Low Low Dat Pro Fac Was Fac Ext Cet Fac Slots Evolved 12 | . . . 4 2 2 . . . . . . 2 . . . . 2 Power 1 | . . . . . . . . . . . . 1 . . . . . Propulsion 4 | . . . 2 1 1 . . . . . . . . . . . . Utility 7 | . . . 2 1 1 . . . . . . 1 . . . . 2 Weapon . | . . . . . . . . . . . . . . . . . . Parts Attached 185 | 5 7 6 13 12 7 5 5 . . . . 2 10 2 34 9 68 Power 21 | 1 1 1 1 1 2 2 . . . . . . 2 . 2 1 7 Engine 6 | 1 1 1 1 1 1 . . . . . . . . . . . . Core 5 | . . . . . 1 1 . . . . . . 1 . 1 . 1 Reactor 10 | . . . . . . 1 . . . . . . 1 . 1 1 6 Propulsion 53 | 2 2 1 4 7 1 1 . . . . . 1 3 1 12 1 17 Treads 11 | 2 2 1 2 . . . . . . . . . 3 1 . . . Leg 31 | . . . . . . . . . . . . 1 . . 12 1 17 Wheel 1 | . . . 1 . . . . . . . . . . . . . . Hover . | . . . . . . . . . . . . . . . . . . Flight 10 | . . . 1 7 1 1 . . . . . . . . . . . Utility 74 | . 2 2 3 3 3 2 4 . . . . 1 4 1 8 2 39 Device 34 | . . . 1 1 1 1 1 . . . . 1 1 1 . . 26 Storage 5 | . 1 1 . 1 . 1 . . . . . . 1 . . . . Processor 6 | . 1 . 1 . . . 1 . . . . . . . 2 . 1 Hackware 2 | . . . . . . . 1 . . . . . . . . . 1 Protection 27 | . . 1 1 1 2 . 1 . . . . . 2 . 6 2 11 Artifact . | . . . . . . . . . . . . . . . . . . Weapon 37 | 2 2 2 5 1 1 . 1 . . . . . 1 . 12 5 5 Energy Gun 2 | . 2 . . . . . . . . . . . . . . . . Energy Cannon . | . . . . . . . . . . . . . . . . . . Ballistic Gun 8 | 2 . . 3 . . . . . . . . . . . . 1 2 Ballistic Cannon 8 | . . 2 2 . 1 . . . . . . . . . 2 1 . Launcher 2 | . . . . . . . . . . . . . . . . 1 1 Special Weapon 4 | . . . . . . . . . . . . . . . 4 . . Impact Weapon 1 | . . . . 1 . . . . . . . . . . . . . Slashing Weapon 12 | . . . . . . . 1 . . . . . 1 . 6 2 2 Piercing Weapon . | . . . . . . . . . . . . . . . . . . Special Melee Weapon . | . . . . . . . . . . . . . . . . . . Unidentified Prototypes 11 | . 1 . 3 1 1 1 1 . . . . . . . . 2 1 Parts Lost 46 | . 1 4 . . . 3 1 . . . . . . . 1 1 35 Power 9 | . . 1 . . . . . . . . . . . . 1 . 7 Propulsion 17 | . . 2 . . . 1 . . . . . . . . . 1 13 Utility 14 | . . . . . . 2 . . . . . . . . . . 12 Weapon 6 | . 1 1 . . . . 1 . . . . . . . . . 3 Highest Loss Streak 9 | . 1 2 . . . 3 4 . . . . . . . 1 1 9 To Critical Strikes . | . . . . . . . . . . . . . . . . . . Average Slot Usage (%) 87 | . 88 91 79 84 90 89 84 86 86 86 86 76 75 82 94 100 92 Engine 4 | . 14 14 9 7 2 . . . . . . . . . . . . Core 2 | . . . . . 3 5 6 6 6 6 6 5 5 5 4 5 1 Reactor 3 | . . . . . . . . . . . . . 3 5 4 5 7 Treads 10 | . 26 25 15 4 . . . . . . . . 14 17 4 . . Leg 11 | . . . . . . . . . . . . . . . 25 35 29 Flight 3 | . . . . 30 40 38 33 33 33 33 33 29 2 . . . . Device 6 | . . . 6 7 13 12 6 6 6 6 6 5 5 5 5 5 15 Storage 5 | . 6 8 9 7 6 6 6 6 6 6 6 5 5 5 5 5 4 Processor 8 | . 12 7 8 7 6 6 7 6 6 6 6 5 5 5 9 11 9 Hackware 1 | . . . . . . . 3 6 6 6 6 5 5 5 1 . . Protection 11 | . . 6 9 7 10 11 12 13 13 13 13 11 13 17 16 17 13 Energy Gun 2 | . 11 11 . . . . . . . . . . . . . . . Ballistic Gun 2 | . 16 . 6 1 . . . . . . . . . . . . . Ballistic Cannon 3 | . . 16 11 1 . . . . . . . . . . . 1 . Impact Weapon 1 | . . . . 5 6 6 6 6 6 6 6 5 5 5 . . . Slashing Weapon 3 | . . . . . . . . . . . . . 3 5 7 6 6 Naked Turns 21 | . . . . . . . . . . . . . . . . . 21 Heaviest Build 90 | 9 34 37 42 42 28 27 28 25 25 25 25 25 73 74 87 85 90 Greatest Support 210 | 40 40 40 40 25 30 30 25 25 25 25 25 25 210 210 210 110 146 Greatest Overweight (x) 2 | . . 1 2 2 . 1 1 . . . . . 1 . 1 . . Average Overweight (x) . | . . . 1 . . . . . . . . . . . . . . Largest Inventory Capacity 15 | 5 15 15 15 15 10 10 10 10 10 10 10 10 15 15 15 15 15 Average Capacity 13 | 5 9 10 15 11 10 9 10 10 10 10 10 10 14 15 15 15 14 Most Carried 15 | 4 9 7 15 15 10 10 10 10 10 10 10 10 15 15 15 15 15 Average Carried 11 | 1 4 5 12 11 9 9 8 10 9 10 10 9 13 14 14 14 14 Final Capacity 15 | 5 15 15 15 10 10 10 10 10 10 10 10 10 15 15 15 15 5 Final Carried 15 | 2 7 5 15 10 10 5 10 10 10 10 10 10 15 15 15 14 5 Class Distribution -------------------- 37% | Scavenger-Mutant 31% | Mutant 19% | Scavenger-Gladiator 10% | Sprinter Dominant Class ---------------- Mutant | -10/Materials Mutant | -10/Subcaves Mutant | -8/Materials Sprinter | -7/Factory Sprinter | -6/Factory Sprinter | -6/Waste Sprinter | -6/Factory Sprinter | -6/Lower Caves Sprinter | -6/Lower Caves Sprinter | -6/Data Miner Sprinter | -5/Proximity Caves Sprinter | -5/Factory Scavenger-Mutant | -5/Waste Scavenger-Gladiator | -5/Factory Scavenger-Gladiator | -5/Extension Scavenger-Gladiator | -5/Cetus Scavenger-Mutant | -4/Factory Resources | -11 -10 -10 -8 -7 -6 -6 -6 -6 -6 -6 -5 -5 -5 -5 -5 -5 -4 ----------- Run | Yrd Mat Sub Mat Fac Fac Was Fac Low Low Dat Pro Fac Was Fac Ext Cet Fac Matter Collected 3400 | 217 131 347 525 . 98 . 219 68 65 . 12 25 100 20 629 148 796 Remotely . | . . . . . . . . . . . . . . . . . . Salvage Created 5378 | . 396 219 578 . . . 237 . 65 . . . 511 108 609 159 2496 Parts 268 | . 22 14 45 . . . 6 . . . . . 8 3 36 15 119 Haulers Intercepted 6 | . 1 . 2 . . . 2 . . . . . . . . . 1 Recyclers Shooed . | . . . . . . . . . . . . . . . . . . Parts Field Recycled . | . . . . . . . . . . . . . . . . . . Retrieved Matter . | . . . . . . . . . . . . . . . . . . Parts Self-Destructed 10 | . . 7 . . . . . 3 . . . . . . . . . Prevented 3 | . . . . . . . . 2 . . 1 . . . . . . Kills | -11 -10 -10 -8 -7 -6 -6 -6 -6 -6 -6 -5 -5 -5 -5 -5 -5 -4 ------- Run | Yrd Mat Sub Mat Fac Fac Was Fac Low Low Dat Pro Fac Was Fac Ext Cet Fac Combat Hostiles Destroyed 76 | . 7 8 6 . . . . . . . . . . 2 8 6 39 Melee 37 | . . . . . . . . . . . . . . 2 7 . 28 Guns 19 | . 7 3 1 . . . . . . . . . . . . . 8 Cannons 11 | . . 4 5 . . . . . . . . . . . . 2 . AOE 6 | . . . . . . . . . . . . . . . . 4 2 Classes Destroyed 16 | . 4 1 5 . . . . . . . . . . . 2 1 3 Worker 7 | . . . 2 . . . . . . . . . . . . . 5 Builder 10 | . 1 . 3 . . . . . . . . . . . . . 6 Tunneler 1 | . 1 . . . . . . . . . . . . . . . . Hauler 6 | . 1 . 2 . . . 2 . . . . . . . . . 1 Recycler 2 | . . . 2 . . . . . . . . . . . . . . Mechanic 1 | . . . . . . . . . . . . . . . . . 1 Operator 3 | . . . 2 . . . 1 . . . . . . . . . . Watcher 1 | . . . 1 . . . . . . . . . . . . . . Swarmer 13 | . . . . . . . . . . . . . . . . 4 9 Grunt 22 | . 7 . 3 . . . . . . . . . . 2 1 . 9 Brawler 1 | . . . . . . . . . . . . . . . . . 1 Duelist 1 | . . . . . . . . . . . . . . . . . 1 Sentry 11 | . . . 3 . . . . . . . . . . . 4 . 4 Hunter 7 | . . . . . . . . . . . . . . . 1 . 6 Programmer 11 | . . . . . . . . . . . . . . . 2 . 9 Cetus Guard 2 | . . . . . . . . . . . . . . . . 2 . Subdweller 8 | . . 8 . . . . . . . . . . . . . . . Guerrilla 1 | . . . . . . . . . . . . . . . 1 . . Best Kill Streak 9 | . 3 2 4 . . . 1 . . . . . . 2 2 6 9 Combat Bots Only 6 | . 3 2 3 . . . . . . . . . . 2 2 6 6 Max Kills in Single Turn 3 | . 1 1 1 . . . 1 . . . . . . 1 1 3 2 Gunslinging . | . . . . . . . . . . . . . . . . . . Exploded 3 | . . . . . . . . . . . . . . . . 3 2 Melee 1 | . . . . . . . . . . . . . . 1 1 . 1 Uniques/NPCs Destroyed . | . . . . . . . . . . . . . . . . . . Combat | -11 -10 -10 -8 -7 -6 -6 -6 -6 -6 -6 -5 -5 -5 -5 -5 -5 -4 -------- Run | Yrd Mat Sub Mat Fac Fac Was Fac Low Low Dat Pro Fac Was Fac Ext Cet Fac Hostile Shots Fired 878 | . 57 51 24 4 . 2 . 28 1 . 25 . . 18 47 35 586 Missed 295 | . 19 21 4 2 . . . 19 . . 11 . . 4 17 15 183 Damage Taken 10426 | . 496 900 227 30 . 94 . 138 19 . 236 . . 264 847 531 6644 Core 1799 | . 58 170 51 17 . . . 65 . . 66 . . . 81 129 1162 Absorbed by Shields 1088 | . . . 82 . . . . . . . . . . . 19 . 987 Redirected to Shielding 242 | . . . . . . . . 3 . . 9 . . . 54 . 176 Regen/Repaired (Parts) 280 | . 233 . . . . . . . . . . . . . . . 47 Core Remaining (%) 76 | 100 . 8 90 97 . . . . . . 84 . . . . 79 . Volleys Fired 203 | . 35 54 37 . . . . . . . . . . . 37 7 33 Largest 2 | . 2 2 2 . . . . . . . . . . . 2 1 1 Hottest 114 | . 90 90 79 . . . . . . . . . . . 114 57 39 Shots Fired 306 | . 70 81 74 . . . . . . . . . . . 42 7 32 Gun 160 | . 70 32 32 . . . . . . . . . . . . . 26 Cannon 110 | . . 49 42 . . . . . . . . . . . 14 5 . Launcher 8 | . . . . . . . . . . . . . . . . 2 6 Special 28 | . . . . . . . . . . . . . . . 28 . . Kinetic 230 | . 62 49 74 . . . . . . . . . . . 14 5 26 Thermal . | . . . . . . . . . . . . . . . . . . Explosive 8 | . . . . . . . . . . . . . . . . 2 6 Electromagnetic 40 | . 8 32 . . . . . . . . . . . . . . . Robot Hit Streak 25 | . 7 25 6 . . . . . . . . . . . 22 19 9 Robot Miss Streak 4 | . 2 2 4 . . . . . . . . . . . 3 1 2 Penetration Max 1 | . . . . . . . . . . . . . . . . . 1 Secondary Targets 2 | . 2 . . . . . . . . . . . . . . . . Max Gunslinging Chain 1 | . 1 . . . . . . . . . . . . . . . . Shots Hit Robots 433 | . 49 64 54 . . . 7 . 1 . . . 12 16 60 6 164 Core Hits 200 | . 18 23 51 . . . 4 . . . . . 4 4 12 6 78 Critical Kills 5 | . . . . . . . . . . . . . . . 1 1 3 Critical Parts Destroyed 8 | . . . . . . . . . 1 . . . . . 4 1 2 Critical Strikes 47 | . . 2 . . . . . . 1 . . . . 2 10 2 30 Destroy 13 | . . . . . . . . . . . . . . . 6 2 5 Blast 2 | . . 2 . . . . . . . . . . . . . . . Smash 2 | . . . . . . . . . 1 . . . . . 1 . . Sever 30 | . . . . . . . . . . . . . . 2 3 . 25 Melee Attacks 307 | . . . . 11 1 . 16 1 6 1 2 1 15 43 28 . 182 Impact 59 | . . . . 11 1 . 14 1 6 1 2 1 3 12 7 . . Slashing 248 | . . . . . . . 2 . . . . . 12 31 21 . 182 Piercing . | . . . . . . . . . . . . . . . . . . Sneak Attacks 15 | . . . . . . . 2 . . . . . . 1 1 . 11 Combat Hostiles . | . . . . . . . . . . . . . . . . . . Follow-up Attacks . | . . . . . . . . . . . . . . . . . . Damage Inflicted 14349 | . 684 1025 1053 . . . 330 . 90 . . . 499 528 1232 421 8487 Guns 2101 | . 670 411 365 . . . . . . . . . . . . . 655 Cannons 1642 | . . 614 686 . . . . . . . . . . . 277 65 . Explosions 1486 | . . . . . . . . . . . . . . . . 356 1130 Melee 9101 | . . . . . . . 330 . 90 . . . 499 528 955 . 6699 Ramming 19 | . 14 . 2 . . . . . . . . . . . . . 3 Kinetic 3255 | . 593 614 1051 . . . . . . . . . . . 277 65 655 Thermal . | . . . . . . . . . . . . . . . . . . Explosive 1486 | . . . . . . . . . . . . . . . . 356 1130 Electromagnetic 488 | . 77 411 . . . . . . . . . . . . . . . Impact 494 | . . . . . . . 268 . 90 . . . . . 136 . . Slashing 8607 | . . . . . . . 62 . . . . . 499 528 819 . 6699 Piercing . | . . . . . . . . . . . . . . . . . . Highest Corruption 17 | . . . . . . 5 5 5 5 5 5 . . . . . 17 Average Corruption 8 | . . . . . . 5 5 5 5 5 5 . . . . . 10 Corruption Purged . | . . . . . . . . . . . . . . . . . . Corruption Blocked . | . . . . . . . . . . . . . . . . . . Effects 83 | . . . . . . 1 6 2 2 . 4 . . . . . 68 Message Errors 17 | . . . . . . . . . . . 1 . . . . . 16 Matter Fused 23 | . . . . . . . 2 1 . . 1 . . . . . 19 Heat Flow Errors 7 | . . . . . . . 1 . . . . . . . . . 6 Energy Discharges 13 | . . . . . . . 2 1 1 . . . . . . . 9 Parts Rejected 4 | . . . . . . . . . . . . . . . . . 4 Data Loss (minor) 8 | . . . . . . 1 . . . . 1 . . . . . 6 Data Loss (major) 9 | . . . . . . . 1 . 1 . 1 . . . . . 6 Alerts 1 | . . . . . . . . . . . . . . . . . 1 Weapon Failures 1 | . . . . . . . . . . . . . . . . . 1 Overload Shots . | . . . . . . . . . . . . . . . . . . Overflow Damage 922 | . . . . . . . 20 . 90 . . . 70 34 111 . 597 Projectiles . | . . . . . . . . . . . . . . . . . . Explosions 59 | . . . . . . . . . . . . . . . . . 59 Melee 863 | . . . . . . . 20 . 90 . . . 70 34 111 . 538 Knockbacks 24 | . . 7 15 . . . . . 1 . . . . . 1 . . Impact 2 | . . . . . . . . . 1 . . . . . 1 . . Kinetic 21 | . . 7 14 . . . . . . . . . . . . . . Secondary 1 | . . . 1 . . . . . . . . . . . . . . Self-Inflicted Damage 4 | . . . 1 . . . . . . . . . . . . . 3 Shots 1 | . . . . . . . . . . . . . . . . . 1 Rammed 3 | . 2 . 1 . . . . . . . . . . . . . . Targets Rammed 5 | . 2 . 1 . . . . . . . . . . . . . 2 Kicked 2 | . . . . . . . . . . . . . . . . . 2 Crushed . | . . . . . . . . . . . . . . . . . . Highest Temperature 330 | . 36 . 86 23 . 1 134 24 12 3 17 . . 1 330 80 262 Average Temperature 34 | . 14 . 27 9 . 1 7 14 3 2 2 . . 1 135 34 86 Received Heat Transfer 1322 | . 264 114 101 18 . . . 24 9 . 18 . . 126 118 63 467 Siege Activations . | . . . . . . . . . . . . . . . . . . Robots Corrupted 1 | . . 1 . . . . . . . . . . . . . . . Combat Hostiles 1 | . . 1 . . . . . . . . . . . . . . . Parts Fried 6 | . 1 1 . . . . 2 . . . . . . . 1 1 . Impact Corruptions 7 | . . . . . . . 1 . 4 . . . . . 2 . . Robots Melted . | . . . . . . . . . . . . . . . . . . Combat Hostiles . | . . . . . . . . . . . . . . . . . . Parts Melted . | . . . . . . . . . . . . . . . . . . Heat Transferred . | . . . . . . . . . . . . . . . . . . Parts Sabotaged 4 | . . . . . . . . . . . . . . . . . 4 Parts Stolen . | . . . . . . . . . . . . . . . . . . Parts Stripped . | . . . . . . . . . . . . . . . . . . Power Chain Reactions . | . . . . . . . . . . . . . . . . . . Missiles Intercepted . | . . . . . . . . . . . . . . . . . . Alert | -11 -10 -10 -8 -7 -6 -6 -6 -6 -6 -6 -5 -5 -5 -5 -5 -5 -4 ------- Run | Yrd Mat Sub Mat Fac Fac Was Fac Low Low Dat Pro Fac Was Fac Ext Cet Fac Peak Influence 774 | . 151 . 297 186 92 47 55 . . . . 137 47 98 328 267 774 Initial 135 | . . . . 135 91 32 11 . . . . 122 47 . 14 106 118 Average 114 | . 60 . 114 155 91 39 19 . . . . 130 17 27 192 193 166 Maximum Alert Level 3 | . . . 1 . . . . . . . . . . . 1 1 3 Low Security (%) 81 | 100 100 . 64 100 100 100 100 . . . . 100 100 100 58 32 76 Level 1 14 | . . . 35 . . . . . . . . . . . 41 67 11 Level 2 3 | . . . . . . . . . . . . . . . . . 10 Level 3 . | . . . . . . . . . . . . . . . . . 1 Level 4 . | . . . . . . . . . . . . . . . . . . Level 5 . | . . . . . . . . . . . . . . . . . . High Security . | . . . . . . . . . . . . . . . . . . Max Security . | . . . . . . . . . . . . . . . . . . Squads Dispatched 18 | . 2 . . 2 . . . . . . . . . 2 2 . 10 Investigation 5 | . 2 . . 2 . . . . . . . . . . 1 . . Extermination 4 | . . . . . . . . . . . . . . . . . 4 Reinforcement 7 | . . . . . . . . . . . . . . 2 1 . 4 Assault 1 | . . . . . . . . . . . . . . . . . 1 Garrison 1 | . . . . . . . . . . . . . . . . . 1 Intercept . | . . . . . . . . . . . . . . . . . . Searches Triggered . | . . . . . . . . . . . . . . . . . . Construction Impeded 2 | . . . . . . . . . . . . . . 1 . . 1 Haulers Reinforced 1 | . . . . . . . . . . . . . . . . . 1 Active Scanning Responses . | . . . . . . . . . . . . . . . . . . Cargo Convoy Interrupts . | . . . . . . . . . . . . . . . . . . Stealth | -11 -10 -10 -8 -7 -6 -6 -6 -6 -6 -6 -5 -5 -5 -5 -5 -5 -4 --------- Run | Yrd Mat Sub Mat Fac Fac Was Fac Low Low Dat Pro Fac Was Fac Ext Cet Fac Distress Signals 2 | . . . . . . . . . . . . . . . 1 1 . Communications Jammed 1 | . . . . . . . . . . . . . . . . . 1 Distress Signals 1 | . . . . . . . . . . . . . . . . . 1 Times Spotted 198 | . 9 9 15 5 . 6 1 7 7 . 19 1 . 7 24 13 75 Peak Tracking Total 16 | . 3 2 6 6 . 6 1 6 4 . 16 1 . 2 5 9 12 Tactical Retreats 18 | . . . 2 . . . . 1 3 . 2 . . . 1 . 9 Traps | -11 -10 -10 -8 -7 -6 -6 -6 -6 -6 -6 -5 -5 -5 -5 -5 -5 -4 ------- Run | Yrd Mat Sub Mat Fac Fac Was Fac Low Low Dat Pro Fac Was Fac Ext Cet Fac Traps Triggered 9 | . 2 1 . 1 1 . . . . . . 1 . . 2 . 1 Indirectly . | . . . . . . . . . . . . . . . . . . Trap Hack Attempts . | . . . . . . . . . . . . . . . . . . Triggered . | . . . . . . . . . . . . . . . . . . Disarmed . | . . . . . . . . . . . . . . . . . . Reprogrammed . | . . . . . . . . . . . . . . . . . . Reused . | . . . . . . . . . . . . . . . . . . Traps Extracted . | . . . . . . . . . . . . . . . . . . Installed 1 | . . 1 . . . . . . . . . . . . . . . Triggered 4 | . . . . . . . . 2 . . 2 . . . . . . Machines | -11 -10 -10 -8 -7 -6 -6 -6 -6 -6 -6 -5 -5 -5 -5 -5 -5 -4 ---------- Run | Yrd Mat Sub Mat Fac Fac Was Fac Low Low Dat Pro Fac Was Fac Ext Cet Fac Machines Disabled 4 | . . . 1 . . . . . . . . . . . 1 2 . Max in Single Turn 2 | . . . 1 . . . . . . . . . . . 1 2 . Garrison Access 2 | . . . 1 . 1 . . . . . . . . . . . . Machines Repaired . | . . . . . . . . . . . . . . . . . . Machines Dismantled . | . . . . . . . . . . . . . . . . . . Machines Sabotaged . | . . . . . . . . . . . . . . . . . . Overloaded Fab Kills . | . . . . . . . . . . . . . . . . . . Hacking | -11 -10 -10 -8 -7 -6 -6 -6 -6 -6 -6 -5 -5 -5 -5 -5 -5 -4 --------- Run | Yrd Mat Sub Mat Fac Fac Was Fac Low Low Dat Pro Fac Was Fac Ext Cet Fac Machines Accessed 21 | . 2 . 2 2 2 . 2 . . 4 . . . 1 1 . 5 Terminals 7 | . 1 . 1 1 . . 1 . . . . . . 1 1 . 1 Fabricators 2 | . . . . 1 1 . . . . . . . . . . . . Repair Stations 4 | . 1 . . . . . . . . . . . . . . . 3 Recycling Units 1 | . . . . . . . 1 . . . . . . . . . . Scanalyzers . | . . . . . . . . . . . . . . . . . . Garrison Access 3 | . . . 1 . 1 . . . . . . . . . . . 1 Total Hacks 63 | . 9 . 2 4 2 . 3 . . 28 . . . 1 2 . 12 Successful 45 | . 6 . 1 . 2 . 1 . . 28 . . . 1 . . 6 Failed 18 | . 3 . 1 4 . . 2 . . . . . . . 2 . 6 Catastrophic 3 | . . . . . . . 1 . . . . . . . 1 . 1 Database Lockouts . | . . . . . . . . . . . . . . . . . . Manual 7 | . 2 . 1 2 . . 1 . . . . . . . . . 1 Terminals 14 | . 4 . 1 2 . . 1 . . . . . . 1 2 . 3 Fabricators 3 | . . . . 2 1 . . . . . . . . . . . . Repair Stations 12 | . 5 . . . . . . . . . . . . . . . 7 Recycling Units 2 | . . . . . . . 2 . . . . . . . . . . Scanalyzers . | . . . . . . . . . . . . . . . . . . Garrison Access 4 | . . . 1 . 1 . . . . . . . . . . . 2 Terminal Hacks 32 | . 2 . . . . . . . . 28 . . . 1 . . 1 Record 11 | . . . . . . . . . . 11 . . . . . . . Part Schematic 8 | . . . . . . . . . . 8 . . . . . . . Robot Schematic 6 | . . . . . . . . . . 6 . . . . . . . Robot Analysis 2 | . 2 . . . . . . . . . . . . . . . . Prototype ID Bank 3 | . . . . . . . . . . 3 . . . . . . . Branch Access Points 1 | . . . . . . . . . . . . . . 1 . . . Zone Layout 1 | . . . . . . . . . . . . . . . . . 1 Fabricator Hacks 1 | . . . . . 1 . . . . . . . . . . . . Network Status 1 | . . . . . 1 . . . . . . . . . . . . Repair Station Hacks 9 | . 4 . . . . . . . . . . . . . . . 5 Scan Component 5 | . 2 . . . . . . . . . . . . . . . 3 Repair 4 | . 2 . . . . . . . . . . . . . . . 2 Recycling Unit Hacks 1 | . . . . . . . 1 . . . . . . . . . . Retrieve Components 1 | . . . . . . . 1 . . . . . . . . . . Scanalyzer . | . . . . . . . . . . . . . . . . . . Garrison Access Hacks 2 | . . . 1 . 1 . . . . . . . . . . . . Seal Access 2 | . . . 1 . 1 . . . . . . . . . . . . Unauthorized Hacks . | . . . . . . . . . . . . . . . . . . Terminals . | . . . . . . . . . . . . . . . . . . Fabricators . | . . . . . . . . . . . . . . . . . . Repair Stations . | . . . . . . . . . . . . . . . . . . Recycling Units . | . . . . . . . . . . . . . . . . . . Scanalyzers . | . . . . . . . . . . . . . . . . . . Garrison Access . | . . . . . . . . . . . . . . . . . . Data Cores Recovered 3 | . . . 2 . . . 1 . . . . . . . . . . Used 1 | . . . 1 . . . . . . . . . . . . . . Hacking Detections 8 | . 1 . . 2 . . 1 . . . . . . . 1 . 3 Full Trace Events 3 | . 1 . . 1 . . . . . . . . . . 1 . . Feedback Events . | . . . . . . . . . . . . . . . . . . Feedback Blocked . | . . . . . . . . . . . . . . . . . . Robot Schematics Acquired 6 | . . . . . . . . . . 6 . . . . . . . Robots Built . | . . . . . . . . . . . . . . . . . . Authchips . | . . . . . . . . . . . . . . . . . . Time . | . . . . . . . . . . . . . . . . . . Total Robot Build Rating . | . . . . . . . . . . . . . . . . . . Part Schematics Acquired 8 | . . . . . . . . . . 8 . . . . . . . Parts Built . | . . . . . . . . . . . . . . . . . . Authchips . | . . . . . . . . . . . . . . . . . . Time . | . . . . . . . . . . . . . . . . . . Total Part Build Rating . | . . . . . . . . . . . . . . . . . . Parts Repaired 3 | . 2 . . . . . . . . . . . . . . . 1 Time 133 | . 52 . . . . . . . . . . . . . . . 81 Parts Recycled . | . . . . . . . . . . . . . . . . . . Recycled Matter . | . . . . . . . . . . . . . . . . . . Retrieved Matter . | . . . . . . . . . . . . . . . . . . Retrieved Components 2 | . . . . . . . 2 . . . . . . . . . . Parts Scanalyzed . | . . . . . . . . . . . . . . . . . . Part Schematics Acquired . | . . . . . . . . . . . . . . . . . . Parts Damaged . | . . . . . . . . . . . . . . . . . . Bothacking | -11 -10 -10 -8 -7 -6 -6 -6 -6 -6 -6 -5 -5 -5 -5 -5 -5 -4 ------------ Run | Yrd Mat Sub Mat Fac Fac Was Fac Low Low Dat Pro Fac Was Fac Ext Cet Fac Used RIF Installer . | . . . . . . . . . . . . . . . . . . Robots Hacked . | . . . . . . . . . . . . . . . . . . Non-combat . | . . . . . . . . . . . . . . . . . . Combat . | . . . . . . . . . . . . . . . . . . Robot Hacks Applied . | . . . . . . . . . . . . . . . . . . Relay Couplers Released . | . . . . . . . . . . . . . . . . . . Fabnet Peak Effective % . | . . . . . . . . . . . . . . . . . . Robots Rewired 13 | . . . . . . . . . . . . . . . 13 . . Allies Hacked . | . . . . . . . . . . . . . . . . . . Hacks Repelled . | . . . . . . . . . . . . . . . . . . Allies | -11 -10 -10 -8 -7 -6 -6 -6 -6 -6 -6 -5 -5 -5 -5 -5 -5 -4 -------- Run | Yrd Mat Sub Mat Fac Fac Was Fac Low Low Dat Pro Fac Was Fac Ext Cet Fac Total Allies 21 | . . . . . . . . . . . . . . . 21 . . Largest Group 10 | . . . . . . . . . . . . . . . 10 7 . Highest-Rated Group 398 | . . . . . . . . . . . . . . . 398 194 . Highest-Rated Ally 159 | . . . . . . . . . . . . . . . 159 39 . Total Orders . | . . . . . . . . . . . . . . . . . . Ally Attacks 107 | . . . . . . . . . . . . . . . 77 30 . Total Damage 3199 | . . . . . . . . . . . . . . . 2529 670 . Kills 22 | . . . . . . . . . . . . . . . 19 3 . Allies Corrupted . | . . . . . . . . . . . . . . . . . . Allies Melted 1 | . . . . . . . . . . . . . . . 1 . . Intel | -11 -10 -10 -8 -7 -6 -6 -6 -6 -6 -6 -5 -5 -5 -5 -5 -5 -4 ------- Run | Yrd Mat Sub Mat Fac Fac Was Fac Low Low Dat Pro Fac Was Fac Ext Cet Fac Robot Analysis Total 2 | . 2 . . . . . . . . . . . . . . . . Derelict Logs Recovered 2 | . . . . . . . . . 2 . . . . . . . . Drone Launches . | . . . . . . . . . . . . . . . . . . Drone Recoveries . | . . . . . . . . . . . . . . . . . . Exploration | -11 -10 -10 -8 -7 -6 -6 -6 -6 -6 -6 -5 -5 -5 -5 -5 -5 -4 ------------- Run | Yrd Mat Sub Mat Fac Fac Was Fac Low Low Dat Pro Fac Was Fac Ext Cet Fac Turns Passed 10061 | 75 899 1409 780 197 175 109 237 78 111 24 84 37 1098 727 1453 128 2440 Spaces Moved 8442 | 50 415 763 316 461 524 226 736 324 403 91 338 127 925 369 919 81 1374 Core 57 | 14 . . . . . . . . . . . . . . . . 43 Treads 2515 | 36 415 763 141 . . . . . . . . . 605 369 186 . . Legs 2145 | . . . . . . . . . . . . . . . 733 81 1331 Wheels 205 | . . . 175 30 . . . . . . . . . . . . . Hover . | . . . . . . . . . . . . . . . . . . Flight 3520 | . . . . 431 524 226 736 324 403 91 338 127 320 . . . . Fastest Speed 20 | 50 160 160 130 23 20 20 23 23 23 23 23 23 23 160 120 121 50 Average Speed 93 | 129 160 164 193 30 20 21 24 23 23 23 23 23 112 160 129 121 117 Slowest Speed 320 | 160 160 240 320 130 23 96 93 23 23 23 23 23 160 160 193 121 121 Overloaded Moves . | . . . . . . . . . . . . . . . . . . Propulsion Burnouts . | . . . . . . . . . . . . . . . . . . Robots Hopped 14 | . . . . 6 . . 1 . . . 1 1 2 . 3 . . Cave-ins Triggered . | . . . . . . . . . . . . . . . . . . Exploration Rate (%) 42 | 4 67 36 32 13 11 92 17 50 64 72 58 3 95 10 77 28 38 Regions Visited 17 Branch Regions 7 Pre-discovered Areas 1 | . . . . . . . . . . 1 . . . . . . . Known Exits Taken 1 | . . . . . . . . . . . . . . 1 . . . Unknown Exits Taken 12 | 1 1 1 1 1 . . 1 1 1 1 1 . . . 1 1 . Scrap Searched 14 | . . 7 . . . . . 2 4 . 1 . . . . . . Spaces Dug 62 | . . . . 6 1 . 5 . 4 1 1 . . 10 . . 34 Terrain Destroyed 145 | . . . . 6 1 . 5 . 4 1 1 . . 10 1 41 75 Melee 62 | . . . . 6 1 . 5 . 4 1 1 . . 10 . . 34 Projectile 5 | . . . . . . . . . . . . . . . 1 2 2 AOE 78 | . . . . . . . . . . . . . . . . 39 39 Terrain Rammed . | . . . . . . . . . . . . . . . . . . Walls Destroyed . | . . . . . . . . . . . . . . . . . . Machines Disabled . | . . . . . . . . . . . . . . . . . . Actions | -11 -10 -10 -8 -7 -6 -6 -6 -6 -6 -6 -5 -5 -5 -5 -5 -5 -4 --------- Run | Yrd Mat Sub Mat Fac Fac Was Fac Low Low Dat Pro Fac Was Fac Ext Cet Fac Total 9957 | 61 580 834 426 497 592 286 768 324 410 91 338 133 964 465 1135 103 1950 Wait 595 | . 104 7 24 4 38 50 . . . . . . . 50 84 . 234 Move 8400 | 49 414 762 315 449 524 225 733 323 402 90 335 125 920 368 912 80 1374 Hop 13 | . . . . 5 . . 1 . . . 1 1 2 . 3 . . Pick Up 154 | 7 14 1 21 4 10 3 9 . 1 . . 1 10 5 19 3 46 Fast Attach 33 | . . 2 7 2 3 3 1 . . . . 1 2 . 8 1 3 Attach 90 | 5 5 4 1 9 2 2 5 . . . . 1 7 1 9 3 36 Detach 8 | . . 1 1 1 1 . 2 . . . . 1 1 . . . . Swap 63 | . 2 . 5 1 2 . . . . . . . 1 1 17 5 29 Drop 101 | . 4 2 14 11 11 3 2 . 1 . . 2 9 4 21 4 13 Fire 203 | . 35 54 37 . . . . . . . . . . . 37 7 33 Melee 291 | . . . . 11 1 . 15 1 6 1 2 1 12 36 25 . 180 Ram 1 | . . . 1 . . . . . . . . . . . . . . Kick 2 | . . . . . . . . . . . . . . . . . 2 Crush 2 | . 2 . . . . . . . . . . . . . . . . Escape Stasis . | . . . . . . . . . . . . . . . . . . Rewire . | . . . . . . . . . . . . . . . . . . Trap 1 | . . 1 . . . . . . . . . . . . . . . Miscellaneous . | . . . . . . . . . . . . . . . . . . Route ------- -11/Scrapyard -10/Materials (discovered 3 exits: [*Mat x2] / [*Sub]) -10/Subcaves (discovered 2 exits: *Mat / [Rec]) -8/Materials -7/Factory -6/Factory -6/Waste -6/Factory -6/Lower Caves -6/Lower Caves (discovered 2 exits: [*Fac] / *Dat) -6/Data Miner -5/Proximity Caves -5/Factory -5/Waste -5/Factory (discovered 4 exits: *Upp x2 / *Ext x2) -5/Extension (discovered 2 exits: *Fac / [*Cet]) -5/Cetus -4/Factory History --------- Turn | Location | Event 8 | -11/Scrapyard | Discovered new exit (range 15) 76 | -11/Scrapyard | Entered Materials 313 | -10/Materials | Build established: Mutant 424 | -10/Materials | Discovered new exit (range 15) 570 | -10/Materials | Discovered new exit (range 16) 865 | -10/Materials | Repaired Lgt. Treads 892 | -10/Materials | Repaired Lgt. Treads 950 | -10/Materials | Discovered new exit (range 6) 975 | -10/Materials | Entered Subcaves 975 | -10/Subcaves | Discovered new exit (range 12) 1273 | -10/Subcaves | Core integrity fell below 50% 1515 | -10/Subcaves | Discovered new exit (range 6) 2102 | -10/Subcaves | Core integrity fell below 20% 2384 | -10/Subcaves | Entered Materials 2384 | -8/Materials | Evolved 4 slots: Propulsion x2, Utility x2 3082 | -8/Materials | Discovered new exit (range 17) 3164 | -8/Materials | Entered Factory 3164 | -7/Factory | Evolved 2 slots: Propulsion x1, Utility x1 3185 | -7/Factory | Build established: Scavenger-Mutant 3359 | -7/Factory | Discovered new exit (range 9) 3361 | -7/Factory | Entered another Factory area 3361 | -6/Factory | Evolved 2 slots: Propulsion x1, Utility x1 3363 | -6/Factory | Discovered new exit (range 18) 3507 | -6/Factory | Build established: Sprinter 3536 | -6/Factory | Sucked down chute 3536 | -6/Factory | Entered Waste 3551 | -6/Waste | EMP discharged 3552 | -6/Waste | Spotted C-40 Crusher 3556 | -6/Waste | Spotted C-40 Crusher 3574 | -6/Waste | Spotted C-40 Crusher 3575 | -6/Waste | Spotted C-40 Crusher 3575 | -6/Waste | Spotted C-40 Crusher 3575 | -6/Waste | Spotted C-40 Crusher 3624 | -6/Waste | Crushed by Compactor (1 part destroyed, 2 dropped) 3630 | -6/Waste | Crushed by Compactor (1 part destroyed, 1 dropped) 3642 | -6/Waste | Discovered new exit (range 12) 3645 | -6/Waste | Entered Factory 3684 | -6/Factory | Lost 4 parts (1n2u1w) 3828 | -6/Factory | Discovered new exit (range 14) 3882 | -6/Factory | Entered Lower Caves 3891 | -6/Lower Caves | Spotted B-75 Beast 3900 | -6/Lower Caves | Attracted the attention of an 0b10 checkpoint 3909 | -6/Lower Caves | Encountered a Warlord checkpoint 3947 | -6/Lower Caves | Acquired the password to a Derelict Tinkerer's latest research 3951 | -6/Lower Caves | Discovered new exit (range 11) 3960 | -6/Lower Caves | Entered another Lower Caves area 3962 | -6/Lower Caves | Discovered new exit (range 8) 4023 | -6/Lower Caves | Spotted B-75 Beast 4067 | -6/Lower Caves | Discovered new exit (range 3) 4071 | -6/Lower Caves | Entered Data Miner 4071 | -6/Data Miner | Discovered new exit (range 6) 4075 | -6/Data Miner | Met Data Miner 4080 | -6/Data Miner | Learned location of Section 7 (-2) 4080 | -6/Data Miner | Acquired the access code to Warlord's prototype stash 4083 | -6/Data Miner | Received God Mode back door access code from Data Miner 4095 | -6/Data Miner | Entered Proximity Caves 4103 | -5/Proximity Caves | Spotted B-75 Beast 4116 | -5/Proximity Caves | Attracted the attention of an 0b10 base 4176 | -5/Proximity Caves | Discovered new exit (range 10) 4179 | -5/Proximity Caves | Entered Factory 4179 | -5/Factory | Evolved 2 slots: Power x1, Utility x1 4180 | -5/Factory | Identified exit to Extension 4216 | -5/Factory | Sucked down chute 4216 | -5/Factory | Entered Waste 4216 | -5/Waste | The area was eerily silent 4234 | -5/Waste | Discovered new exit (range 13) 4747 | -5/Waste | Build established: Scavenger-Mutant 5258 | -5/Waste | Murdered 3 allies 5314 | -5/Waste | Entered Factory 5426 | -5/Factory | Identified exit to Upper Caves 5948 | -5/Factory | Build established: Scavenger-Gladiator 6041 | -5/Factory | Entered Extension 6095 | -5/Extension | Rescued A7 6532 | -5/Extension | Build established: Scavenger-Mutant 6660 | -5/Extension | Rescued a captive Derelict 6670 | -5/Extension | Spotted B-75 Beast 6684 | -5/Extension | Spotted B-75 Beast 6705 | -5/Extension | Allies destroyed B-75 Beast 6729 | -5/Extension | Allies destroyed B-75 Beast 6747 | -5/Extension | Lost 8 allies 6821 | -5/Extension | Extracted ID and sensor layout for unrecognized location from A7's data core 6854 | -5/Extension | Rescued a captive Derelict 6855 | -5/Extension | Rescued a captive Derelict 6970 | -5/Extension | Rescued a captive Derelict 6971 | -5/Extension | Rescued a captive Derelict 7039 | -5/Extension | Build established: Scavenger-Gladiator 7184 | -5/Extension | Discovered new exit (range 10) 7185 | -5/Extension | Discovered new exit (range 6) 7333 | -5/Extension | Rescued a captive Derelict 7334 | -5/Extension | Rescued a captive Derelict 7494 | -5/Extension | Entered Cetus 7494 | -5/Cetus | Accompanied by 7 allies 7511 | -5/Cetus | Spotted Cetus Guard 7511 | -5/Cetus | Spotted Cetus Guard 7516 | -5/Cetus | Spotted Cetus Guard 7534 | -5/Cetus | Allies destroyed Cetus Guard 7534 | -5/Cetus | Spotted Cetus Guard 7536 | -5/Cetus | Destroyed Cetus Guard 7540 | -5/Cetus | Destroyed Cetus Guard 7540 | -5/Cetus | Allies destroyed Cetus Guard 7551 | -5/Cetus | Lost 4 allies 7603 | -5/Cetus | Discovered new exit (range 16) 7613 | -5/Cetus | Lost 3 allies 7622 | -5/Cetus | Entered Factory 7622 | -4/Factory | Evolved 2 slots: Utility x2 7867 | -4/Factory | Repaired Weapon Mount 8617 | -4/Factory | Build established: Scavenger-Mutant 8982 | -4/Factory | System corruption reached 10% 9359 | -4/Factory | Lost 3 parts (2p1u) 9475 | -4/Factory | Lost 5 parts (2n3u) 9835 | -4/Factory | Lost 9 parts (1p4n2u2w) 9872 | -4/Factory | First assault squad dispatched 9982 | -4/Factory | Lost 5 parts (2n3u) 10021 | -4/Factory | Spotted B-86 Titan 10037 | -4/Factory | Garrison activated, responded to threat 10041 | -4/Factory | Released all parts (7) 10044 | -4/Factory | Core integrity fell below 50% 10052 | -4/Factory | Core integrity fell below 20% 10062 | -4/Factory | Destroyed by Tesla Bomb Trap Last Messages --------------- 10041_ Released Structural Scanner. 10041_ Released Graphene Brace. 10041_ S-27 Virus misfires. 10043_ K-01 Serf collects debris. 10044_ The unstable cave ceiling collapses. 10045_ B-86 Titan activates siege mode. 10046_ K-01 Serf collects debris. 10048_ B-86 Titan suffers critical hit (Burn). 10049_ K-01 Serf collects debris. 10050_ System corrupted: Energy discharge (-35). 10050_ Penetrated by Slug. 10052_ P-80 Master resets B-86 Titan, system corruption cleaned. 10053_ K-01 Serf collects debris. 10062_ Triggered Tesla Bomb Trap. 10062_ A bubble of electromagnetic force engulfs the area. 10062_ T-07 Excavator destroyed. 10062_ Tesla Bomb Trap short circuited. 10062_ A bubble of electromagnetic force engulfs the area. 10062_ Tesla Bomb Trap short circuited. 10062_ A bubble of electromagnetic force engulfs the area. Map ----- +----------------------------------------------------+ | | | | | | | | | | | | | ?????????????????????????????????????????????????? | | ?????????????????????????????????????????????????? | | ?????????????????????????????????????????????????? | | ?????????????????????????????????????????????????? | | ??????????#???###????????????????????????????????? | | ?????????? ??? ????????????????????????????????? | | ?????????? ?? /????????????????????????????????? | | ?????????? "? ????????????????????????????????? | | ?????????? "T ] ????????????????????????????????? | | ?????????# "" ????????????????????????????????? | | ?????????# "" ????????????????????????????????? | | ????????? ??????????????????????????????? | | ?????????# """ ""??????????????????????????????? | | ?????????#[! """ ""??????????????????????????????? | | ?????????#[ """ ????????????????????????????????? | | ?????????# ??????????????????????????????????? | | ?????????# ??????????????????#?????????????????? | | ##+#######+#####+############T #######???????????? | | % ????????? | | @ ????????? | | ????????? | | = t ????????? | | !!! % ?????????? | | !!! """"#######+############+#########?????????? | | !! ##???????????????????????????????????????? | | #????????????????????????????????????????? | | ###????????????????????????????????????????? | | ##?????????????????????????????????????????? | | ##?????????????????????????????????????????? | | ##?????????????????????????????????????????? | | # ?????????????????????????????????????????? | | # ?????????????????????????????????????????? | | # ?????????????????????????????????????????? | | % # ?????????????????????????????????????????? | | [ " ?????????????????????????????????????????? | | [ # ???????????????????????????????????????? | | # #?????????????????????????????????????? | | = "## #? #?????????????????????????????????????? | | ## #?? #?????????????????????????????????????? | | ## #??###?????????????????????????????????????? | | ## #??????????????????????????????????????????? | | ## #??????????????????????????????????????????? | | ## +??????????????????????????????????????????? | | ## ???????????????????????????????????????????? | +----------------------------------------------------+ Best States ------------- Heat Dissipation 64 Energy Generation 41 Energy Capacity 575 Matter Stores 300 Matter Capacity 300 Sight Range 20 Terrain Scan Density 10 Jamming Range 12 Armor Coverage 675 Core Shielding 30 Utility Shielding 66 Melee Speed Boost 20 Evasion (%) 66 Targeting Accuracy 20 Melee Accuracy 22 Recoil Reduction 6 Offensive Hacking 10 Item Schematics ----------------- Combat Drone Bay | -6/Data Miner | Free Lgt. Regenerative Plating | -6/Data Miner | Free Cld. Gravmag System | -6/Data Miner | Free Exp. Heat Sink | -6/Data Miner | Free Adv. VSS Leg | -6/Data Miner | Free Adv. Trap Scanner | -6/Data Miner | Free Tesla Bomb Launcher | -6/Data Miner | Free HERF Cannon | -6/Data Miner | Free Robot Schematics ------------------ C-35 Carver | -6/Data Miner | Free S-27 Virus | -6/Data Miner | Free P-70 Sage | -6/Data Miner | Free B-60 Warrior | -6/Data Miner | Free G-50 Soldier | -6/Data Miner | Free M-36 Artificer | -6/Data Miner | Free Fabricated ------------ Nothing Alien Tech Used ----------------- None Achievements -------------- None Challenges ------------ None Game ------ Seed ExperimentalSmallInjector Manual? 0 Play Time 01:27:52 Cumulative 138.1 hours Start 2023.12.27 @ 13:05:39 End 2023.12.27 @ 15:13:28 Sessions 1 Manual Loads 0 Difficulty Rogue Special Mode None Game No. 156 Rogue 120 Adventurer 36 Explorer 0 Win Type - Total 8 Types 2/0/6/0/0/0/0/0/0 Lore% 54 Gallery% 78 Achievement% 64 Wizard Run 0 Options --------- ASCII 0 Keyboard 0 Movement Mouse Keybinds 0 Fullscreen 1 Font 18/SmallcapsGlow Map View 76x50 Zoom Use 0% Tactical HUD 1 Map Filters NONE Filters NONE Steam 1 RUN: 099af02a-86fb-40da-b618-dc0726e3ecd5